fUST/lending_fUST_20250821
["ID","MTS","AMOUNT","RATE_DAILY","PERIOD"]
[380411815,1755748259927,-2524.82941417,0.000232,2]
[380411816,1755748259938,-3655.22,0.000232,7]
[380411817,1755748259947,-512.32682958,0.00023221,2]
[380411818,1755748259958,-505.64555115,0.00023221,2]
[380411819,1755748259967,-501.4937368,0.00023221,2]
[380411820,1755748259977,-218.0004553,0.00023221,2]
[380411821,1755748259987,-502.70577595,0.00023221,2]
[380411822,1755748259997,-502.10326884,0.00023221,2]
[380411823,1755748260007,-503.45926165,0.00023221,2]
[380411824,1755748260017,-502.6565379,0.00023221,2]
[380411825,1755748260027,-1000.0,0.00023221,2]
[380411826,1755748260037,-1000.0,0.00023221,2]
[380411827,1755748260047,-502.62261906,0.00023221,2]
[380411828,1755748260058,-2618.2481025,0.00023255,2]
[380411829,1755748260068,-832.78,0.000233,7]
[380411830,1755748260078,-19522.1,0.000233,2]
[380411831,1755748260089,-702.44,0.00023306,3]
[380411832,1755748260099,-351.22,0.00023306,3]
[380411833,1755748260109,-2715.12328229,0.0002331,2]
[380411834,1755748260119,-480.0,0.00023313,3]
[380411835,1755748260129,-737.23,0.00023313,3]
[380411836,1755748260139,-480.0,0.00023313,3]
[380411837,1755748260148,-2701.47,0.00023313,3]
[380411838,1755748260157,-594.33,0.00023313,3]
[380411839,1755748260168,-480.0,0.00023313,2]
[380411840,1755748260177,-480.0,0.00023313,3]
[380411841,1755748260187,-480.0,0.00023314,3]
[380411842,1755748260197,-480.0,0.00023314,3]
[380411843,1755748260208,-422.83345265,0.00023314,3]
[380411844,1755748260218,-480.0,0.00023314,3]
[380411845,1755748260228,-480.0,0.00023314,3]
[380411846,1755748260238,-480.0,0.00023314,3]
[380411847,1755748260248,-480.0,0.00023314,3]
[380411848,1755748260264,-875.86,0.00023314,3]
[380411849,1755748260274,-406.47903385,0.00023314,3]
[380411850,1755748260284,-480.0,0.00023314,3]
[380411851,1755748260294,-480.0,0.00023314,3]
[380411852,1755748260304,-480.0,0.00023314,3]
[380411853,1755748260314,-480.0,0.00023314,3]
[380411854,1755748260325,-2638.08,0.00023314,3]
[380411855,1755748260337,-480.0,0.00023314,3]
[380411856,1755748260347,-3300.14,0.00023314,3]
[380411857,1755748260356,-593.7,0.00023314,3]
[380411858,1755748260367,-480.0,0.00023314,3]
[380411859,1755748260377,-480.0,0.00023314,3]
[380411860,1755748260387,-480.0,0.00023314,3]
[380411861,1755748260397,-480.0,0.00023314,3]
[380411862,1755748260407,-480.0,0.00023314,3]
[380411863,1755748260417,-895.67,0.00023314,3]
[380411864,1755748260427,-1399.72,0.00023314,3]
[380411865,1755748260436,-480.0,0.00023314,3]
[380411866,1755748260445,-480.0,0.00023314,3]
[380411867,1755748260455,-480.0,0.00023314,3]
[380411868,1755748260468,-480.0,0.00023314,3]
[380411869,1755748260478,-532.29,0.00023314,3]
[380411870,1755748260488,-480.0,0.00023314,3]
[380411871,1755748260498,-480.0,0.00023314,3]
[380411872,1755748260507,-480.0,0.00023314,3]
[380411873,1755748260517,-591.82177627,0.00023314,3]
[380411874,1755748260526,-480.0,0.00023314,3]
[380411875,1755748260536,-480.0,0.00023314,3]
[380411876,1755748260546,-480.0,0.00023314,3]
[380411877,1755748260556,-5447.78,0.00023314,3]
[380411878,1755748260566,-674.62,0.00023314,3]
[380411879,1755748260576,-480.0,0.00023314,3]
[380411880,1755748260585,-480.0,0.00023314,3]
[380411881,1755748260595,-480.0,0.00023314,3]
[380411882,1755748260604,-1783.52,0.00023314,3]
[380411883,1755748260614,-1629.2,0.00023314,3]
[380411884,1755748260624,-480.0,0.00023314,3]
[380411885,1755748260633,-3702.12,0.00023314,3]
[380411886,1755748260643,-480.0,0.00023314,3]
[380411887,1755748260653,-480.0,0.00023314,3]
[380411888,1755748260663,-797.92,0.00023314,3]
[380411889,1755748260673,-480.0,0.00023314,3]
[380411890,1755748260683,-480.0,0.00023314,3]
[380411891,1755748260695,-1864.22,0.00023314,3]
[380411892,1755748260713,-951.75,0.00023314,3]
[380411893,1755748260723,-648.42,0.00023314,3]
[380411894,1755748260732,-2075.22,0.00023314,3]
[380411895,1755748260741,-480.0,0.00023314,3]
[380411896,1755748260751,-374.07626951,0.00023314,3]
[380411897,1755748260760,-480.0,0.00023314,3]
[380411898,1755748260769,-480.0,0.00023314,3]
[380411899,1755748260778,-1553.46,0.00023314,3]
[380411900,1755748260787,-480.0,0.00023314,3]
[380411901,1755748260797,-647.85,0.00023314,3]
[380411902,1755748260806,-480.0,0.00023314,3]
[380411903,1755748260816,-1178.38,0.00023314,3]
[380411904,1755748260832,-480.0,0.00023314,3]
[380411905,1755748260842,-480.0,0.00023314,3]
[380411906,1755748260852,-991.42,0.00023314,3]
[380411907,1755748260862,-1016.85,0.00023314,3]
[380411908,1755748260871,-1057.89,0.00023314,3]
[380411909,1755748260881,-480.0,0.00023314,3]
[380411910,1755748260891,-1512.12,0.00023314,3]
[380411911,1755748260901,-564.0,0.00023314,3]
[380411912,1755748260911,-448.43063686,0.00023314,3]
[380411913,1755748260920,-151.539718,0.00023315,7]
[380411914,1755748260930,-152.084877,0.00023315,7]
[380411915,1755748260939,-480.0,0.00023315,3]
[380411916,1755748260949,-151.0,0.00023315,7]
[380411917,1755748260960,-480.0,0.00023315,3]
[380411918,1755748260970,-480.0,0.00023315,3]
[380411919,1755748260979,-559.05,0.00023315,3]
[380411920,1755748260988,-807.92,0.00023315,3]
[380411921,1755748260999,-480.0,0.00023315,3]
[380411922,1755748261008,-480.0,0.00023315,3]
[380411923,1755748261017,-793.66,0.00023315,3]
[380411924,1755748261026,-1428.7,0.00023315,3]
[380411925,1755748261036,-480.0,0.00023315,3]
[380411926,1755748261045,-480.0,0.00023315,3]
[380411927,1755748261055,-480.0,0.00023315,3]
[380411928,1755748261064,-1796.97,0.00023315,3]
[380411929,1755748261074,-480.0,0.00023315,3]
[380411930,1755748261083,-480.0,0.00023315,3]
[380411931,1755748261093,-523.51,0.00023315,3]
[380411932,1755748261103,-611.77012824,0.00023315,3]
[380411933,1755748261113,-480.0,0.00023315,3]
[380411934,1755748261124,-480.0,0.00023315,3]
[380411935,1755748261133,-715.03,0.00023315,3]
[380411936,1755748261143,-384.65664516,0.00023315,3]
[380411937,1755748261152,-480.0,0.00023315,3]
[380411938,1755748261161,-480.0,0.00023315,3]
[380411939,1755748261171,-480.0,0.00023315,3]
[380411940,1755748261181,-480.0,0.00023315,3]
[380411941,1755748261190,-858.71,0.00023315,3]
[380411942,1755748261199,-480.0,0.00023315,3]
[380411943,1755748261210,-480.0,0.00023315,3]
[380411944,1755748261219,-480.0,0.00023315,3]
[380411945,1755748261229,-480.0,0.00023315,3]
[380411946,1755748261240,-480.0,0.00023315,3]
[380411947,1755748261250,-2615.91,0.00023315,3]
[380411948,1755748261260,-480.0,0.00023315,3]
[380411949,1755748261270,-480.0,0.00023315,3]
[380411950,1755748261280,-362.90346042,0.00023315,3]
[380411951,1755748261290,-480.0,0.00023315,3]
[380411952,1755748261300,-480.0,0.00023315,3]
[380411953,1755748261396,-1149.36,0.00023315,3]
[380411954,1755748261410,-1236.19,0.00023315,3]
[380411955,1755748261420,-915.11,0.00023315,3]
[380411956,1755748261430,-480.0,0.00023315,3]
[380411957,1755748261439,-480.0,0.00023315,3]
[380411958,1755748261448,-480.0,0.00023315,3]
[380411959,1755748261458,-577.4,0.00023315,3]
[380411960,1755748261467,-480.0,0.00023315,3]
[380411961,1755748261477,-2561.11,0.00023315,3]
[380411962,1755748261486,-480.0,0.00023315,3]
[380411963,1755748261496,-389.57362936,0.00023315,3]
[380411964,1755748261506,-480.0,0.00023315,3]
[380411965,1755748261515,-1005.05,0.00023315,3]
[380411966,1755748261525,-480.0,0.00023315,3]
[380411967,1755748261535,-941.12,0.00023315,3]
[380411968,1755748261544,-892.24,0.00023315,3]
[380411969,1755748261554,-480.0,0.00023315,3]
[380411970,1755748261563,-480.0,0.00023315,3]
[380411971,1755748261573,-480.0,0.00023315,3]
[380411972,1755748261582,-480.0,0.00023315,3]
[380411973,1755748261592,-2443.51,0.00023315,3]
[380411974,1755748261601,-444.03741983,0.00023315,3]
[380411975,1755748261610,-480.0,0.00023315,3]
[380411976,1755748261620,-480.0,0.00023315,3]
[380411977,1755748261629,-480.0,0.00023315,3]
[380411978,1755748261639,-288.54867799,0.00023315,3]
[380411979,1755748261649,-480.0,0.00023315,3]
[380411980,1755748261659,-367.74420096,0.00023315,3]
[380411981,1755748261668,-480.0,0.00023315,3]
[380411982,1755748261678,-887.42,0.00023315,3]
[380411983,1755748261688,-480.0,0.00023315,3]
[380411984,1755748261698,-480.0,0.00023315,3]
[380411985,1755748261708,-480.0,0.00023315,3]
[380411986,1755748261718,-338.28398122,0.00023315,3]
[380411987,1755748261727,-5229.65,0.00023315,3]
[380411988,1755748261736,-1030.77,0.00023315,3]
[380411989,1755748261745,-540.71,0.00023315,3]
[380411990,1755748261755,-480.0,0.00023315,3]
[380411991,1755748261764,-3009.74,0.00023315,3]
[380411992,1755748261773,-480.0,0.00023315,3]
[380411993,1755748261782,-542.96,0.00023315,3]
[380411994,1755748261792,-480.0,0.00023315,3]
[380411995,1755748261801,-445.98051445,0.00023315,3]
[380411996,1755748261811,-480.0,0.00023315,3]
[380411997,1755748261820,-592.05,0.00023315,3]
[380411998,1755748261829,-480.0,0.00023315,3]
[380411999,1755748261838,-1089.38,0.00023315,3]
[380412000,1755748261848,-480.0,0.00023315,3]
[380412001,1755748261857,-480.0,0.00023315,3]
[380412002,1755748261867,-5611.64,0.00023315,3]
[380412003,1755748261876,-677.02,0.00023315,3]
[380412004,1755748261886,-480.0,0.00023315,3]
[380412005,1755748261895,-480.0,0.00023315,3]
[380412006,1755748261905,-480.0,0.00023315,3]
[380412007,1755748261914,-480.0,0.00023315,3]
[380412008,1755748261924,-734.67,0.00023315,3]
[380412009,1755748261935,-480.0,0.00023315,3]
[380412010,1755748261944,-689.18,0.00023315,3]
[380412011,1755748261953,-1840.86,0.00023315,3]
[380412012,1755748261963,-2539.56,0.00023315,3]
[380412013,1755748261973,-695.53,0.00023315,3]
[380412014,1755748261983,-1426.78,0.00023315,3]
[380412015,1755748261992,-2052.92,0.00023315,3]
[380412016,1755748262002,-480.0,0.00023315,3]
[380412017,1755748262012,-1617.96,0.00023315,3]
[380412018,1755748262021,-1324.04,0.00023315,3]
[380412019,1755748262031,-480.0,0.00023315,3]
[380412020,1755748262040,-480.0,0.00023315,3]
[380412021,1755748262050,-382.63109332,0.00023315,3]
[380412022,1755748262061,-744.68,0.00023315,3]
[380412023,1755748262071,-1481.49,0.00023315,3]
[380412024,1755748262090,-2492.2,0.00023315,3]
[380412025,1755748262106,-293.46558718,0.00023315,3]
[380412026,1755748262123,-151.0,0.00023315,7]
[380412027,1755748262141,-842.73,0.00023315,3]
[380412028,1755748262160,-151.0,0.00023315,7]
[380412029,1755748262176,-152.740771,0.00023315,7]
[380412030,1755748262193,-585.38,0.00023315,3]
[380412031,1755748262208,-768.11,0.00023315,3]
[380412032,1755748262224,-480.0,0.00023315,3]
[380412033,1755748262241,-553.47,0.00023315,3]
[380412034,1755748262260,-153.715387,0.00023315,7]
[380412035,1755748262275,-151.0,0.00023315,7]
[380412036,1755748262290,-3317.57,0.00023315,3]
[380412037,1755748262308,-151.0,0.00023315,7]
[380412038,1755748262323,-152.33359,0.00023315,7]
[380412039,1755748262342,-152.33359,0.00023315,7]
[380412040,1755748262357,-152.33359,0.00023315,7]
[380412041,1755748262375,-480.0,0.00023315,3]
[380412042,1755748262390,-152.33359,0.00023315,7]
[380412043,1755748262405,-615.15,0.00023315,3]
[380412044,1755748262420,-3072.41,0.00023315,3]
[380412045,1755748262435,-695.53,0.00023315,3]
[380412046,1755748262449,-641.501228,0.00023315,7]
[380412047,1755748262463,-916.31,0.00023315,3]
[380412048,1755748262478,-641.501228,0.00023315,7]
[380412049,1755748262498,-641.501228,0.00023315,7]
[380412050,1755748262512,-151.0,0.00023315,7]
[380412051,1755748262527,-641.501228,0.00023315,7]
[380412052,1755748262543,-151.0,0.00023315,7]
[380412053,1755748262556,-151.0,0.00023315,7]
[380412054,1755748262571,-480.0,0.00023315,3]
[380412055,1755748262587,-480.0,0.00023315,3]
[380412056,1755748262602,-480.0,0.00023315,3]
[380412057,1755748262616,-423.46113962,0.00023315,3]
[380412058,1755748262630,-7252.87,0.00023315,3]
[380412059,1755748262644,-627.68,0.00023315,3]
[380412060,1755748262659,-480.0,0.00023315,3]
[380412061,1755748262674,-480.0,0.00023315,3]
[380412062,1755748262689,-2884.97,0.00023315,3]
[380412063,1755748262704,-151.335566,0.00023315,7]
[380412064,1755748262720,-151.335566,0.00023315,7]
[380412065,1755748262734,-4748.18,0.00023315,3]
[380412066,1755748262750,-151.335566,0.00023315,7]
[380412067,1755748262766,-480.0,0.00023315,3]
[380412068,1755748262781,-151.335566,0.00023315,7]
[380412069,1755748262795,-510.54,0.00023315,3]
[380412070,1755748262809,-480.0,0.00023316,3]
[380412071,1755748262824,-551.39587215,0.00023316,3]
[380412072,1755748262838,-480.0,0.00023316,3]
[380412073,1755748262852,-480.0,0.00023316,3]
[380412074,1755748262867,-480.0,0.00023316,3]
[380412075,1755748262881,-480.0,0.00023316,3]
[380412076,1755748262895,-480.0,0.00023316,3]
[380412077,1755748262909,-152.37576,0.00023316,7]
[380412078,1755748262923,-151.0,0.00023316,7]
[380412079,1755748262938,-152.754389,0.00023316,7]
[380412080,1755748262952,-480.0,0.00023316,3]
[380412081,1755748262967,-480.0,0.00023316,3]
[380412082,1755748262981,-480.0,0.00023316,3]
[380412083,1755748262996,-480.0,0.00023316,3]
[380412084,1755748263010,-480.0,0.00023316,3]
[380412085,1755748263025,-563.96,0.00023316,3]
[380412086,1755748263040,-480.0,0.00023316,3]
[380412087,1755748263056,-480.0,0.00023316,3]
[380412088,1755748263071,-480.0,0.00023316,3]
[380412089,1755748263087,-480.0,0.00023316,3]
[380412090,1755748263103,-480.0,0.00023316,3]
[380412091,1755748263121,-480.0,0.00023316,3]
[380412092,1755748263137,-480.0,0.00023316,3]
[380412093,1755748263275,-480.0,0.00023316,3]
[380412094,1755748263285,-480.0,0.00023316,3]
[380412095,1755748263294,-480.0,0.00023316,3]
[380412096,1755748263303,-480.0,0.00023316,3]
[380412097,1755748263313,-480.0,0.00023316,3]
[380412098,1755748263323,-480.0,0.00023316,3]
[380412099,1755748263338,-423.73080891,0.00023316,3]
[380412100,1755748263347,-482.27969462,0.00023316,3]
[380412101,1755748263357,-480.0,0.00023316,3]
[380412102,1755748263367,-323.0080006,0.00023316,3]
[380412103,1755748263378,-1056.3,0.00023316,3]
[380412104,1755748263388,-480.0,0.00023316,3]
[380412105,1755748263397,-451.15986703,0.00023316,3]
[380412106,1755748263408,-480.0,0.00023316,3]
[380412107,1755748263418,-549.69,0.00023316,3]
[380412108,1755748263428,-480.0,0.00023316,3]
[380412109,1755748263438,-480.0,0.00023316,3]
[380412110,1755748263448,-152.93019,0.00023316,7]
[380412111,1755748263458,-152.93019,0.00023316,7]
[380412112,1755748263468,-152.93019,0.00023316,7]
[380412113,1755748263477,-480.0,0.00023316,3]
[380412114,1755748263487,-152.93019,0.00023316,7]
[380412115,1755748263497,-480.0,0.00023316,3]
[380412116,1755748263507,-170.01866872,0.00023316,3]
[380412117,1755748263516,-672.59,0.00023316,3]
[380412118,1755748263526,-480.0,0.00023316,3]
[380412119,1755748263535,-263.58850891,0.00023316,3]
[380412120,1755748263545,-480.0,0.00023316,3]
[380412121,1755748263555,-151.0,0.00023316,7]
[380412122,1755748263564,-151.0,0.00023316,7]
[380412123,1755748263574,-153.515539,0.00023316,7]
[380412124,1755748263584,-152.617796,0.00023316,7]
[380412125,1755748263594,-151.0,0.00023316,7]
[380412126,1755748263603,-480.0,0.00023316,3]
[380412127,1755748263613,-157.601182,0.00023316,7]
[380412128,1755748263623,-3167.79,0.00023316,3]
[380412129,1755748263633,-293.99123493,0.00023316,3]
[380412130,1755748263643,-480.0,0.00023316,3]
[380412131,1755748263653,-1252.19,0.00023316,3]
[380412132,1755748263663,-353.523331,0.00023316,7]
[380412133,1755748263672,-353.523331,0.00023316,7]
[380412134,1755748263681,-353.523331,0.00023316,7]
[380412135,1755748263691,-480.0,0.00023316,3]
[380412136,1755748263701,-353.523331,0.00023316,7]
[380412137,1755748263712,-480.0,0.00023316,3]
[380412138,1755748263722,-153.251458,0.00023316,7]
[380412139,1755748263731,-153.251458,0.00023316,7]
[380412140,1755748263740,-153.251458,0.00023316,7]
[380412141,1755748263750,-153.251458,0.00023316,7]
[380412142,1755748263759,-582.11,0.00023316,3]
[380412143,1755748263769,-480.0,0.00023316,3]
[380412144,1755748263778,-480.0,0.00023316,3]
[380412145,1755748263787,-462.29783129,0.00023316,3]
[380412146,1755748263797,-480.0,0.00023316,3]
[380412147,1755748263806,-480.0,0.00023316,3]
[380412148,1755748263816,-606.19269174,0.00023316,3]
[380412149,1755748263825,-480.0,0.00023316,3]
[380412150,1755748263835,-480.0,0.00023316,3]
[380412151,1755748263844,-480.0,0.00023316,3]
[380412152,1755748263854,-195.52301378,0.00023316,3]
[380412153,1755748263864,-480.0,0.00023316,3]
[380412154,1755748263873,-480.0,0.00023316,3]
[380412155,1755748263883,-6839.3798043,0.00023347,2]
[380412156,1755748263892,-2148.27598161,0.00023365,2]
[380412157,1755748263902,-6636.44,0.000234,7]
[380412158,1755748263913,-480.0,0.00023447,3]
[380412159,1755748263922,-480.0,0.00023447,3]
[380412160,1755748263932,-480.0,0.00023447,3]
[380412161,1755748263942,-480.0,0.00023447,3]
[380412162,1755748263952,-480.0,0.00023447,3]
[380412163,1755748263962,-480.0,0.00023447,3]
[380412164,1755748263972,-480.0,0.00023447,3]
[380412165,1755748263981,-480.0,0.00023447,3]
[380412166,1755748263991,-480.0,0.00023447,3]
[380412167,1755748264002,-480.0,0.00023447,3]
[380412168,1755748264012,-500.0,0.00023447,2]
[380412169,1755748264022,-500.0,0.00023447,2]
[380412170,1755748264032,-502.0194529,0.00023447,2]
[380412171,1755748264042,-480.0,0.00023447,3]
[380412172,1755748264052,-480.0,0.00023447,3]
[380412173,1755748264062,-480.0,0.00023447,3]
[380412174,1755748264071,-480.0,0.00023447,3]
[380412175,1755748264081,-354.79723471,0.00023447,3]
[380412176,1755748264090,-480.0,0.00023447,3]
[380412177,1755748264100,-480.0,0.00023447,3]
[380412178,1755748264110,-480.0,0.00023447,3]
[380412179,1755748264120,-480.0,0.00023447,3]
[380412180,1755748264130,-480.0,0.00023447,3]
[380412181,1755748264140,-595.89,0.00023447,3]
[380412182,1755748264150,-481.05580624,0.00023447,3]
[380412183,1755748264160,-480.0,0.00023447,3]
[380412184,1755748264169,-480.0,0.00023447,3]
[380412185,1755748264178,-480.0,0.00023447,3]
[380412186,1755748264188,-480.0,0.00023447,3]
[380412187,1755748264199,-480.0,0.00023447,3]
[380412188,1755748264209,-1000.0,0.00023447,3]
[380412189,1755748264218,-480.0,0.00023447,3]
[380412190,1755748264229,-480.0,0.00023447,3]
[380412191,1755748264239,-480.0,0.00023447,3]
[380412192,1755748264248,-480.0,0.00023447,3]
[380412193,1755748264258,-480.0,0.00023447,3]
[380412194,1755748264267,-480.0,0.00023447,3]
[380412195,1755748264277,-480.0,0.00023447,3]
[380412196,1755748264286,-480.0,0.00023447,3]
[380412197,1755748264296,-480.0,0.00023447,3]
[380412198,1755748264306,-500.0,0.00023447,3]
[380412199,1755748264315,-480.0,0.00023447,3]
[380412200,1755748264326,-500.0,0.00023447,3]
[380412201,1755748264339,-500.0,0.00023447,3]
[380412202,1755748264348,-500.0,0.00023447,3]
[380412203,1755748264358,-500.0,0.00023447,3]
[380412204,1755748264367,-480.0,0.00023447,3]
[380412205,1755748264379,-500.0,0.00023447,3]
[380412206,1755748264388,-500.0,0.00023447,3]
[380412207,1755748264399,-500.0,0.00023447,3]
[380412208,1755748264409,-500.0,0.00023447,3]
[380412209,1755748264419,-500.0,0.00023447,3]
[380412210,1755748264430,-500.0,0.00023447,3]
[380412211,1755748264439,-500.0,0.00023447,3]
[380412212,1755748264450,-500.0,0.00023447,3]
[380412213,1755748264460,-500.0,0.00023447,3]
[380412214,1755748264471,-500.0,0.00023447,3]
[380412215,1755748264480,-500.0,0.00023447,3]
[380412216,1755748264491,-500.0,0.00023447,3]
[380412217,1755748264501,-500.0,0.00023447,3]
[380412218,1755748264511,-480.0,0.00023447,3]
[380412219,1755748264522,-480.0,0.00023447,3]
[380412220,1755748264532,-480.0,0.00023447,3]
[380412221,1755748264542,-480.0,0.00023447,3]
[380412222,1755748264552,-480.0,0.00023447,3]
[380412223,1755748264562,-480.0,0.00023447,3]
[380412224,1755748264572,-480.0,0.00023447,3]
[380412225,1755748264582,-564.42960505,0.00023447,3]
[380412226,1755748264592,-480.0,0.00023447,3]
[380412227,1755748264602,-480.0,0.00023447,3]
[380412228,1755748264612,-480.0,0.00023447,3]
[380412229,1755748264622,-480.0,0.00023447,3]
[380412230,1755748264632,-607.59,0.00023447,3]
[380412231,1755748264642,-480.0,0.00023447,3]
[380412232,1755748264651,-480.0,0.00023447,3]
[380412233,1755748264661,-303.69112128,0.00023447,3]
[380412234,1755748264670,-225.39780094,0.00023447,3]
[380412235,1755748264681,-480.0,0.00023447,3]
[380412236,1755748264690,-461.60694314,0.00023447,3]
[380412237,1755748264700,-480.0,0.00023447,3]
[380412238,1755748264710,-480.0,0.00023447,3]
[380412239,1755748264720,-480.0,0.00023447,3]
[380412240,1755748264729,-480.0,0.00023447,3]
[380412241,1755748264738,-480.0,0.00023447,3]
[380412242,1755748264748,-480.0,0.00023447,3]
[380412243,1755748264757,-480.0,0.00023447,3]
[380412244,1755748264766,-480.0,0.00023447,3]
[380412245,1755748264775,-480.54988282,0.00023447,3]
[380412246,1755748264785,-480.0,0.00023447,3]
[380412247,1755748264795,-481.71188341,0.00023447,3]
[380412248,1755748264804,-480.0,0.00023447,3]
[380412249,1755748264813,-480.0,0.00023447,3]
[380412250,1755748264823,-520.15512833,0.00023447,3]
[380412251,1755748264832,-480.0,0.00023447,3]
[380412252,1755748264842,-480.0,0.00023447,3]
[380412253,1755748264938,-480.0,0.00023447,3]
[380412254,1755748264956,-480.0,0.00023447,3]
[380412255,1755748264966,-480.0,0.00023447,3]
[380412256,1755748264976,-480.0,0.00023447,3]
[380412257,1755748264985,-482.21394857,0.00023447,3]
[380412258,1755748264995,-480.0,0.00023447,3]
[380412259,1755748265004,-480.0,0.00023447,3]
[380412260,1755748265014,-480.14,0.00023447,3]
[380412261,1755748265023,-480.0,0.00023447,3]
[380412262,1755748265033,-480.0,0.00023447,3]
[380412263,1755748265042,-503.32233028,0.00023447,3]
[380412264,1755748265051,-480.0,0.00023447,3]
[380412265,1755748265060,-1228.43,0.00023447,3]
[380412266,1755748265070,-1308.39,0.00023447,3]
[380412267,1755748265079,-480.0,0.00023447,3]
[380412268,1755748265088,-480.0,0.00023447,3]
[380412269,1755748265098,-480.0,0.00023447,3]
[380412270,1755748265107,-480.0,0.00023447,3]
[380412271,1755748265116,-890.83,0.00023447,3]
[380412272,1755748265126,-480.0,0.00023447,3]
[380412273,1755748265135,-480.0,0.00023447,3]
[380412274,1755748265144,-522.78,0.00023447,3]
[380412275,1755748265154,-480.0,0.00023447,3]
[380412276,1755748265163,-480.0,0.00023447,3]
[380412277,1755748265173,-480.0,0.00023447,3]
[380412278,1755748265182,-480.0,0.00023447,3]
[380412279,1755748265191,-480.0,0.00023447,3]
[380412280,1755748265201,-480.0,0.00023447,3]
[380412281,1755748265211,-480.0,0.00023447,3]
[380412282,1755748265221,-830.55,0.00023447,3]
[380412283,1755748265230,-480.0,0.00023447,3]
[380412284,1755748265239,-399.44554469,0.00023447,3]
[380412285,1755748265248,-533.1339873,0.00023447,3]
[380412286,1755748265258,-480.0,0.00023447,3]
[380412287,1755748265267,-480.0,0.00023447,3]
[380412288,1755748265277,-480.0,0.00023447,3]
[380412289,1755748265286,-480.0,0.00023447,3]
[380412290,1755748265295,-293.7965069,0.00023447,3]
[380412291,1755748265305,-480.0,0.00023447,3]
[380412292,1755748265314,-480.0,0.00023447,3]
[380412293,1755748265325,-480.0,0.00023447,3]
[380412294,1755748265339,-480.0,0.00023447,3]
[380412295,1755748265348,-480.0,0.00023447,3]
[380412296,1755748265357,-500.42702973,0.00023447,3]
[380412297,1755748265367,-461.46205622,0.00023447,3]
[380412298,1755748265378,-480.0,0.00023447,3]
[380412299,1755748265388,-480.0,0.00023447,3]
[380412300,1755748265397,-480.0,0.00023447,3]
[380412301,1755748265408,-500.0,0.00023447,3]
[380412302,1755748265419,-500.0,0.00023447,3]
[380412303,1755748265429,-500.0,0.00023447,3]
[380412304,1755748265438,-500.0,0.00023447,3]
[380412305,1755748265449,-500.0,0.00023447,3]
[380412306,1755748265459,-500.0,0.00023447,3]
[380412307,1755748265469,-500.0,0.00023447,3]
[380412308,1755748265478,-500.0,0.00023447,3]
[380412309,1755748265488,-500.0,0.00023447,3]
[380412310,1755748265498,-500.0,0.00023447,3]
[380412311,1755748265509,-500.0,0.00023447,3]
[380412312,1755748265519,-500.0,0.00023447,3]
[380412313,1755748265529,-500.0,0.00023447,3]
[380412314,1755748265539,-500.0,0.00023447,3]